[Event "NJSK 2021 Jeugd B"]
[Site "Almelo, Netherlands"]
[Date "2021.08.03"]
[Round "3.8"]
[White "Franke, Daniel"]
[Black "Arnold, Lorin"]
[Result "1-0"]
[TimeControl "90min/40moves + 30min + 30sec/move"]
[WhiteElo "1554"]
[BlackElo "1651"]

1. d4 {[%emt 00:00:01]} d5 {[%clk 01:30:59]} 2. c4 {[%clk 01:31:23]} {[%emt
00:00:06]} e6 {[%clk 01:31:20]} {[%emt 00:00:09]} 3. Nf3 {[%clk 01:31:51]}
{[%emt 00:00:03]} f5 {[%clk 01:31:33]} {[%emt 00:00:15]} 4. Nc3 {[%clk
01:32:09]} {[%emt 00:00:12]} Nf6 {[%clk 01:31:55]} {[%emt 00:00:08]} 5. Bg5
{[%clk 01:32:12]} {[%emt 00:00:28]} c6 {[%clk 01:32:12]} {[%emt 00:00:13]} 6.
e3 {[%clk 01:32:21]} {[%emt 00:00:21]} Bd6 {[%clk 01:32:37]} {[%emt 00:00:04]}
7. Bd3 {[%clk 01:31:23]} {[%emt 00:01:28]} O-O {[%clk 01:32:52]} {[%emt
00:00:14]} 8. O-O {[%clk 01:31:33]} {[%emt 00:00:21]} Qe8 {[%clk 01:33:08]}
{[%emt 00:00:14]} 9. c5 {[%clk 01:27:44]} {[%emt 00:04:19]} Bc7 {[%clk
01:33:35]} {[%emt 00:00:03]} 10. Bxf6 {[%clk 01:27:32]} {[%emt 00:00:43]} Rxf6
{[%clk 01:33:50]} {[%emt 00:00:14]} 11. Ne5 {[%clk 01:25:05]} {[%emt 00:02:57]}
Nd7 {[%clk 01:31:20]} {[%emt 00:03:00]} 12. f4 {[%clk 01:25:01]} {[%emt
00:00:34]} Rh6 {[%clk 01:30:47]} {[%emt 00:01:02]} 13. Nxd7 {[%clk 01:21:53]}
{[%emt 00:03:39]} Bxd7 {[%clk 01:31:04]} {[%emt 00:00:12]} 14. b4 {[%clk
01:17:06]} {[%emt 00:05:18]} Qe7 {[%clk 01:29:13]} {[%emt 00:02:21]} 15. g3
{[%clk 01:11:58]} {[%emt 00:05:38]} Be8 {[%clk 01:29:03]} {[%emt 00:00:40]} 16.
Be2 {[%clk 01:10:00]} {[%emt 00:02:28]} g5 {[%clk 01:28:33]} {[%emt 00:01:00]}
17. Rf2 {[%clk 00:52:48]} {[%emt 00:17:43]} g4 {[%clk 01:28:35]} {[%emt
00:00:27]} 18. Rb1 {[%clk 00:43:17]} {[%emt 00:10:02]} Rg6 {[%clk 01:28:37]}
{[%emt 00:00:28]} 19. Bf1 {[%clk 00:28:38]} {[%emt 00:15:09]} h5 {[%clk
01:28:05]} {[%emt 00:01:02]} 20. Qa4 {[%clk 00:19:42]} {[%emt 00:09:26]} h4
{[%clk 01:27:15]} {[%emt 00:01:20]} 21. b5 {[%clk 00:16:33]} {[%emt 00:03:39]}
Bd8 {[%clk 01:26:43]} {[%emt 00:01:01]} 22. bxc6 {[%clk 00:16:10]} {[%emt
00:00:54]} Bxc6 {[%clk 01:25:51]} {[%emt 00:01:22]} 23. Bb5 {[%clk 00:16:08]}
{[%emt 00:00:32]} hxg3 {[%clk 01:26:13]} {[%emt 00:00:08]} 24. hxg3 {[%clk
00:16:31]} {[%emt 00:00:07]} Rh6 {[%clk 01:18:24]} {[%emt 00:08:19]} 25. Rg2
{[%clk 00:16:02]} {[%emt 00:01:00]} Qh7 {[%clk 01:17:00]} {[%emt 00:01:54]} 26.
Kf2 {[%clk 00:15:19]} {[%emt 00:01:13]} Rh2 {[%clk 01:16:41]} {[%emt 00:00:48]}
27. Rbg1 {[%clk 00:15:09]} {[%emt 00:00:40]} Qh3 {[%clk 01:13:17]} {[%emt
00:03:53]} 28. Bxc6 {[%clk 00:14:57]} {[%emt 00:00:43]} Bh4 {[%clk 01:12:32]}
{[%emt 00:01:14]} 29. Ne2 {[%clk 00:15:20]} {[%emt 00:00:07]} bxc6 {[%clk
01:09:53]} {[%emt 00:03:09]} 30. Qxc6 {[%clk 00:15:16]} {[%emt 00:00:34]} Rb8
{[%clk 01:09:59]} {[%emt 00:00:23]} 31. Qxe6+ {[%clk 00:15:37]} {[%emt
00:00:09]} Kh7 {[%clk 01:10:22]} {[%emt 00:00:07]} 32. Qxf5+ {[%clk 00:15:33]}
{[%emt 00:00:35]} Kh6 {[%clk 01:10:26]} {[%emt 00:00:24]} 33. Qc2 {[%clk
00:15:19]} {[%emt 00:00:46]} Rxg2+ {[%clk 01:09:56]} {[%emt 00:00:59]} 34. Rxg2
{[%clk 00:15:23]} {[%emt 00:00:27]} Qh1 {[%clk 01:10:01]} {[%emt 00:00:24]} 35.
Qc1 {[%clk 00:13:52]} {[%emt 00:02:01]} Bxg3+ {[%clk 01:06:29]} {[%emt
00:04:01]} 36. Rxg3 {[%clk 00:12:52]} {[%emt 00:01:30]} Qh2+ {[%clk 01:05:58]}
{[%emt 00:01:02]} 37. Rg2 {[%clk 00:13:12]} {[%emt 00:00:10]} Qh3 {[%clk
01:03:51]} {[%emt 00:02:36]} 38. Ng3 {[%clk 00:11:06]} {[%emt 00:02:37]} Qh4
{[%clk 01:04:15]} {[%emt 00:00:06]} 39. Kg1 {[%clk 00:10:19]} {[%emt 00:01:17]}
Kg7 {[%clk 01:04:32]} {[%emt 00:00:13]} 40. Nf5+ {[%clk 00:10:39]} {[%emt
00:00:10]} 1-0

[Event "NJSK 2021 Jeugd B"]
[Site "Almelo, Netherlands"]
[Date "2021.08.04"]
[Round "4.1"]
[White "Slagboom, Leandro"]
[Black "Pham, Khoi"]
[Result "1/2-1/2"]
[TimeControl "90min/40moves + 30min + 30sec/move"]
[WhiteElo "1996"]
[BlackElo "2128"]

1. Nf3 {[%clk 01:30:55]} {[%emt 00:00:05]} g6 {[%clk 01:30:50]} {[%emt
00:00:10]} 2. c4 {[%clk 01:31:02]} {[%emt 00:00:24]} Bg7 {[%clk 01:31:14]}
{[%emt 00:00:06]} 3. d4 {[%clk 01:31:26]} {[%emt 00:00:05]} Nf6 {[%clk
01:31:32]} {[%emt 00:00:12]} 4. g3 {[%clk 01:31:42]} {[%emt 00:00:14]} O-O
{[%clk 01:31:31]} {[%emt 00:00:31]} 5. Bg2 {[%clk 01:32:02]} {[%emt 00:00:10]}
d6 {[%clk 01:31:46]} {[%emt 00:00:15]} 6. Nc3 {[%clk 01:32:21]} {[%emt
00:00:11]} c5 {[%clk 01:31:45]} {[%emt 00:00:30]} 7. O-O {[%clk 01:31:16]}
{[%emt 00:01:35]} Nc6 {[%clk 01:31:57]} {[%emt 00:00:19]} 8. b3 {[%clk
01:27:24]} {[%emt 00:04:22]} cxd4 {[%clk 01:27:04]} {[%emt 00:05:22]} 9. Nxd4
{[%clk 01:24:50]} {[%emt 00:03:05]} Nxd4 {[%clk 01:26:51]} {[%emt 00:00:43]} 10.
Qxd4 {[%clk 01:25:06]} {[%emt 00:00:14]} Bf5 {[%clk 01:21:34]} {[%emt
00:05:47]} 11. Bb2 {[%clk 01:22:03]} {[%emt 00:03:33]} Ne4 {[%clk 01:10:20]}
{[%emt 00:11:45]} 12. Qe3 {[%clk 01:21:41]} {[%emt 00:00:50]} Nxc3 {[%clk
01:02:28]} {[%emt 00:08:23]} 13. Bxc3 {[%clk 01:21:02]} {[%emt 00:01:10]} Bxc3
{[%clk 01:02:47]} {[%emt 00:00:12]} 14. Qxc3 {[%clk 01:21:28]} {[%emt
00:00:03]} Qc7 {[%clk 01:02:02]} {[%emt 00:01:15]} 15. Qe3 {[%clk 01:06:31]}
{[%emt 00:15:26]} a5 {[%clk 01:00:03]} {[%emt 00:02:30]} 16. Rac1 {[%clk
01:03:47]} {[%emt 00:03:14]} Rfc8 {[%clk 00:51:24]} {[%emt 00:09:08]} 17. Rfd1
{[%clk 01:00:39]} {[%emt 00:03:38]} Rab8 {[%clk 00:44:58]} {[%emt 00:06:56]} 18.
a3 {[%clk 00:48:56]} {[%emt 00:12:13]} Qc5 {[%clk 00:28:13]} {[%emt 00:17:16]}
19. Qxe7 {[%clk 00:40:47]} {[%emt 00:08:38]} Qxa3 {[%clk 00:26:28]} {[%emt
00:02:16]} 20. Bd5 {[%clk 00:37:40]} {[%emt 00:03:37]} 1/2-1/2

[Event "NJSK 2021 Jeugd B"]
[Site "Almelo, Netherlands"]
[Date "2021.08.04"]
[Round "4.2"]
[White "Boghossian, Wahe"]
[Black "Van Kuijk, Vadim"]
[Result "1-0"]
[TimeControl "90min/40moves + 30min + 30sec/move"]
[WhiteElo "1915"]
[BlackElo "1722"]

1. e4 {[%clk 01:30:56]} {[%emt 00:00:03]} c6 {[%clk 01:30:44]} {[%emt
00:00:17]} 2. d4 {[%clk 01:31:18]} {[%emt 00:00:08]} d5 {[%clk 01:31:09]}
{[%emt 00:00:05]} 3. e5 {[%clk 01:31:39]} {[%emt 00:00:09]} Bf5 {[%clk
01:31:25]} {[%emt 00:00:14]} 4. h4 {[%clk 01:31:00]} {[%emt 00:01:09]} h5
{[%clk 01:27:03]} {[%emt 00:04:52]} 5. Bd3 {[%clk 01:29:59]} {[%emt 00:01:31]}
Bxd3 {[%clk 01:27:14]} {[%emt 00:00:19]} 6. Qxd3 {[%clk 01:30:20]} {[%emt
00:00:09]} e6 {[%clk 01:26:54]} {[%emt 00:00:50]} 7. Bg5 {[%clk 01:29:56]}
{[%emt 00:00:54]} Be7 {[%clk 01:25:14]} {[%emt 00:02:09]} 8. Nf3 {[%clk
01:24:29]} {[%emt 00:05:57]} Nh6 {[%clk 01:20:02]} {[%emt 00:05:43]} 9. Nbd2
{[%clk 01:17:34]} {[%emt 00:07:24]} Nf5 {[%clk 01:17:24]} {[%emt 00:03:10]} 10.
Rb1 {[%clk 01:02:21]} {[%emt 00:15:43]} f6 {[%clk 01:08:48]} {[%emt 00:09:06]}
11. Bf4 {[%clk 01:00:52]} {[%emt 00:01:57]} Na6 {[%clk 01:08:00]} {[%emt
00:01:19]} 12. c3 {[%clk 00:33:47]} {[%emt 00:27:35]} Qb6 {[%clk 00:58:43]}
{[%emt 00:09:47]} 13. b4 {[%clk 00:30:50]} {[%emt 00:03:27]} Nc7 {[%clk
00:48:43]} {[%emt 00:10:29]} 14. a4 {[%clk 00:20:14]} {[%emt 00:11:07]} a6
{[%clk 00:45:30]} {[%emt 00:03:44]} 15. Qe2 {[%clk 00:17:54]} {[%emt 00:02:49]}
Kf7 {[%clk 00:41:52]} {[%emt 00:04:08]} 16. exf6 {[%clk 00:14:44]} {[%emt
00:03:40]} gxf6 {[%clk 00:29:09]} {[%emt 00:13:12]} 17. a5 {[%clk 00:14:35]}
{[%emt 00:00:39]} Qb5 {[%clk 00:28:02]} {[%emt 00:01:37]} 18. Bxc7 {[%clk
00:14:54]} {[%emt 00:00:10]} Rag8 {[%clk 00:26:56]} {[%emt 00:01:37]} 19. g3
{[%clk 00:13:42]} {[%emt 00:01:41]} Nd6 {[%clk 00:24:00]} {[%emt 00:03:27]} 20.
Bxd6 {[%clk 00:07:59]} {[%emt 00:06:13]} Bxd6 {[%clk 00:24:28]} {[%emt
00:00:02]} 21. Qxb5 {[%clk 00:07:51]} {[%emt 00:00:39]} cxb5 {[%clk 00:24:55]}
{[%emt 00:00:02]} 22. Nb3 {[%clk 00:05:51]} {[%emt 00:02:29]} Rg4 {[%clk
00:22:35]} {[%emt 00:02:50]} 23. Nc5 {[%clk 00:04:28]} {[%emt 00:01:53]} e5
{[%clk 00:22:19]} {[%emt 00:00:46]} 24. Nxb7 {[%clk 00:03:06]} {[%emt
00:01:52]} Bc7 {[%clk 00:22:30]} {[%emt 00:00:19]} 25. Nc5 {[%clk 00:03:06]}
{[%emt 00:00:31]} Re8 {[%clk 00:22:11]} {[%emt 00:00:48]} 26. dxe5 {[%clk
00:01:34]} {[%emt 00:02:02]} fxe5 {[%clk 00:22:27]} {[%emt 00:00:15]} 27. Ng5+
{[%clk 00:00:58]} {[%emt 00:01:05]} Kf6 {[%clk 00:22:21]} {[%emt 00:00:36]} 28.
O-O {[%clk 00:01:14]} {[%emt 00:00:15]} e4 {[%clk 00:22:41]} {[%emt 00:00:09]}
29. Kg2 {[%clk 00:01:07]} {[%emt 00:00:37]} e3 {[%clk 00:22:58]} {[%emt
00:00:13]} 30. f4 {[%clk 00:01:16]} {[%emt 00:00:21]} e2 {[%clk 00:23:04]}
{[%emt 00:00:24]} 31. Nxa6 {[%clk 00:00:32]} {[%emt 00:01:14]} exf1=Q+ {[%clk
00:23:23]} {[%emt 00:00:11]} 32. Rxf1 {[%clk 00:00:59]} {[%emt 00:00:04]} Bd6
{[%clk 00:23:36]} {[%emt 00:00:16]} 33. Kf3 {[%clk 00:00:36]} {[%emt 00:00:53]}
Rc8 {[%clk 00:23:35]} {[%emt 00:00:31]} 34. Rc1 {[%clk 00:00:33]} {[%emt
00:00:33]} Kf5 {[%clk 00:23:49]} {[%emt 00:00:17]} 35. Kf2 {[%clk 00:00:32]}
{[%emt 00:00:31]} d4 {[%clk 00:23:31]} {[%emt 00:00:47]} 36. Nc5 {[%clk
00:00:35]} {[%emt 00:00:27]} Bxc5 {[%clk 00:22:32]} {[%emt 00:01:28]} 37. bxc5
{[%clk 00:00:43]} {[%emt 00:00:22]} Rxc5 {[%clk 00:22:19]} {[%emt 00:00:44]} 38.
a6 {[%clk 00:01:09]} {[%emt 00:00:04]} d3 {[%clk 00:22:08]} {[%emt 00:00:40]}
39. a7 {[%clk 00:01:02]} {[%emt 00:00:37]} Rc8 {[%clk 00:18:54]} {[%emt
00:03:44]} 40. Rd1 {[%clk 00:00:50]} {[%emt 00:00:42]} Ra8 {[%clk 00:18:49]}
{[%emt 00:00:35]} 41. Rxd3 {[%clk 00:26:31]} {[%emt 00:04:49]} Rxa7 {[%clk
00:49:03]} {[%emt 00:00:16]} 42. Rd5+ {[%clk 00:26:29]} {[%emt 00:00:32]} Kg6
{[%clk 00:45:21]} {[%emt 00:04:12]} 43. Rxb5 {[%clk 00:19:49]} {[%emt
00:07:11]} Ra2+ {[%clk 00:39:24]} {[%emt 00:06:26]} 44. Kf3 {[%clk 00:19:44]}
{[%emt 00:00:35]} Rd2 {[%clk 00:37:55]} {[%emt 00:01:59]} 45. f5+ {[%clk
00:12:18]} {[%emt 00:07:56]} Kh6 {[%clk 00:31:46]} {[%emt 00:06:39]} 46. Rb6+
{[%clk 00:01:04]} {[%emt 00:11:44]} Kg7 {[%clk 00:32:12]} {[%emt 00:00:04]} 47.
Rb7+ {[%clk 00:01:05]} {[%emt 00:00:29]} Kf8 {[%clk 00:30:55]} {[%emt
00:01:46]} 48. Nh7+ {[%clk 00:01:24]} {[%emt 00:00:12]} Kg8 {[%clk 00:31:05]}
{[%emt 00:00:20]} 49. Nf6+ {[%clk 00:01:45]} {[%emt 00:00:09]} Kf8 {[%clk
00:31:21]} {[%emt 00:00:14]} 50. Nxg4 {[%clk 00:02:07]} {[%emt 00:00:09]} 1-0

[Event "NJSK 2021 Jeugd B"]
[Site "Almelo, Netherlands"]
[Date "2021.08.04"]
[Round "4.3"]
[White "Achuthan, Dylan"]
[Black "Boeren, Jurriaan"]
[Result "1-0"]
[TimeControl "90min/40moves + 30min + 30sec/move"]
[WhiteElo "1888"]
[BlackElo "1614"]

1. Nf3 {[%clk 01:30:55]} {[%emt 00:00:04]} d5 {[%clk 01:30:33]} {[%emt
00:00:28]} 2. g3 {[%clk 01:31:12]} {[%emt 00:00:13]} Nf6 {[%clk 01:30:34]}
{[%emt 00:00:29]} 3. Bg2 {[%clk 01:31:36]} {[%emt 00:00:06]} e6 {[%clk
01:29:44]} {[%emt 00:01:20]} 4. O-O {[%clk 01:31:40]} {[%emt 00:00:25]} Be7
{[%clk 01:29:58]} {[%emt 00:00:16]} 5. d3 {[%clk 01:31:57]} {[%emt 00:00:13]}
O-O {[%clk 01:30:05]} {[%emt 00:00:22]} 6. Nbd2 {[%clk 01:32:12]} {[%emt
00:00:15]} b6 {[%clk 01:30:24]} {[%emt 00:00:11]} 7. e4 {[%clk 01:31:27]}
{[%emt 00:01:15]} dxe4 {[%clk 01:28:55]} {[%emt 00:02:00]} 8. Ng5 {[%clk
01:28:12]} {[%emt 00:03:43]} Bb7 {[%clk 01:26:16]} {[%emt 00:03:10]} 9. Ndxe4
{[%clk 01:19:00]} {[%emt 00:09:41]} Nxe4 {[%clk 01:16:13]} {[%emt 00:10:33]} 10.
Nxe4 {[%clk 01:18:42]} {[%emt 00:00:48]} Qc8 {[%clk 01:15:17]} {[%emt
00:01:27]} 11. Bd2 {[%clk 01:04:12]} {[%emt 00:14:59]} Nd7 {[%clk 01:07:05]}
{[%emt 00:08:42]} 12. Bc3 {[%clk 00:59:10]} {[%emt 00:05:31]} Bf6 {[%clk
00:53:18]} {[%emt 00:14:18]} 13. Nxf6+ {[%clk 00:49:04]} {[%emt 00:10:36]} Nxf6
{[%clk 00:53:37]} {[%emt 00:00:11]} 14. Bxf6 {[%clk 00:47:30]} {[%emt
00:02:05]} gxf6 {[%clk 00:53:58]} {[%emt 00:00:08]} 15. Qg4+ {[%clk 00:46:20]}
{[%emt 00:01:40]} Kh8 {[%clk 00:54:23]} {[%emt 00:00:06]} 16. Qh4 {[%clk
00:45:14]} {[%emt 00:01:36]} f5 {[%clk 00:50:43]} {[%emt 00:04:10]} 17. Qf6+
{[%clk 00:33:47]} {[%emt 00:11:58]} Kg8 {[%clk 00:50:32]} {[%emt 00:00:41]} 18.
Qg5+ {[%clk 00:32:49]} {[%emt 00:01:27]} Kh8 {[%clk 00:50:55]} {[%emt
00:00:08]} 19. Qf6+ {[%clk 00:33:16]} {[%emt 00:00:03]} Kg8 {[%clk 00:51:19]}
{[%emt 00:00:06]} 20. Bxb7 {[%clk 00:33:43]} {[%emt 00:00:03]} Qxb7 {[%clk
00:51:41]} {[%emt 00:00:08]} 21. a4 {[%clk 00:31:59]} {[%emt 00:02:13]} Qd5
{[%clk 00:43:13]} {[%emt 00:08:57]} 22. Qg5+ {[%clk 00:28:53]} {[%emt
00:03:36]} Kh8 {[%clk 00:43:08]} {[%emt 00:00:36]} 23. Qf6+ {[%clk 00:29:19]}
{[%emt 00:00:03]} Kg8 {[%clk 00:43:33]} {[%emt 00:00:06]} 24. Ra3 {[%clk
00:24:22]} {[%emt 00:05:26]} Rfd8 {[%clk 00:36:06]} {[%emt 00:07:57]} 25. Rc3
{[%clk 00:20:06]} {[%emt 00:04:46]} c5 {[%clk 00:19:37]} {[%emt 00:17:00]} 26.
Rc4 {[%clk 00:18:31]} {[%emt 00:02:04]} Qf3 {[%clk 00:12:32]} {[%emt 00:07:35]}
27. Rh4 {[%clk 00:09:55]} {[%emt 00:09:06]} Rd4 {[%clk 00:10:54]} {[%emt
00:02:08]} 28. Rxd4 {[%clk 00:07:48]} {[%emt 00:02:38]} cxd4 {[%clk 00:11:18]}
{[%emt 00:00:06]} 29. Qxd4 {[%clk 00:07:55]} {[%emt 00:00:22]} Rc8 {[%clk
00:08:45]} {[%emt 00:02:26]} 30. c4 {[%clk 00:07:36]} {[%emt 00:01:26]} Qc6
{[%clk 00:07:40]} {[%emt 00:01:36]} 31. Ra1 {[%clk 00:04:55]} {[%emt 00:03:11]}
Qc5 {[%clk 00:07:02]} {[%emt 00:01:07]} 32. Qxc5 {[%clk 00:02:05]} {[%emt
00:03:20]} bxc5 {[%clk 00:07:24]} {[%emt 00:00:08]} 33. Kf1 {[%clk 00:01:41]}
{[%emt 00:00:53]} Rb8 {[%clk 00:07:33]} {[%emt 00:00:22]} 34. Ra2 {[%clk
00:01:54]} {[%emt 00:00:17]} Kg7 {[%clk 00:06:51]} {[%emt 00:01:11]} 35. Ke2
{[%clk 00:02:08]} {[%emt 00:00:16]} Kf6 {[%clk 00:07:03]} {[%emt 00:00:18]} 36.
Kd2 {[%clk 00:02:19]} {[%emt 00:00:18]} a5 {[%clk 00:07:11]} {[%emt 00:00:22]}
37. Kc3 {[%clk 00:02:13]} {[%emt 00:00:37]} e5 {[%clk 00:07:19]} {[%emt
00:00:22]} 38. Ra3 {[%clk 00:02:14]} {[%emt 00:00:28]} Ke6 {[%clk 00:06:47]}
{[%emt 00:01:03]} 39. Rb3 {[%clk 00:00:35]} {[%emt 00:02:09]} Rxb3+ {[%clk
00:06:49]} {[%emt 00:00:27]} 40. Kxb3 {[%clk 00:01:02]} {[%emt 00:00:04]} e4
{[%clk 00:06:10]} {[%emt 00:01:10]} 41. Kc3 {[%clk 00:19:53]} {[%emt 00:11:38]}
Ke5 {[%clk 00:33:20]} {[%emt 00:03:19]} 42. b3 {[%clk 00:11:27]} {[%emt
00:08:57]} h6 {[%clk 00:28:56]} {[%emt 00:04:54]} 43. Kd2 {[%clk 00:04:47]}
{[%emt 00:07:10]} Kd4 {[%clk 00:14:48]} {[%emt 00:14:38]} 44. dxe4 {[%clk
00:04:49]} {[%emt 00:00:28]} Kxe4 {[%clk 00:13:55]} {[%emt 00:01:23]} 45. Kc3
{[%clk 00:02:47]} {[%emt 00:02:31]} f6 {[%clk 00:07:32]} {[%emt 00:06:53]} 46.
Kd2 {[%clk 00:01:32]} {[%emt 00:01:45]} f4 {[%clk 00:05:58]} {[%emt 00:02:04]}
47. gxf4 {[%clk 00:01:01]} {[%emt 00:01:01]} Kxf4 {[%clk 00:06:19]} {[%emt
00:00:13]} 48. f3 {[%clk 00:00:34]} {[%emt 00:00:54]} Kxf3 {[%clk 00:04:54]}
{[%emt 00:01:55]} 49. b4 {[%clk 00:00:35]} {[%emt 00:00:29]} cxb4 {[%clk
00:05:10]} {[%emt 00:00:13]} 50. c5 {[%clk 00:00:59]} {[%emt 00:00:07]} b3
{[%clk 00:02:03]} {[%emt 00:03:37]} 51. c6 {[%clk 00:01:16]} {[%emt 00:00:12]}
b2 {[%clk 00:02:21]} {[%emt 00:00:12]} 52. Kc2 {[%clk 00:01:43]} {[%emt
00:00:03]} Kg2 {[%clk 00:02:48]} {[%emt 00:00:03]} 53. c7 {[%clk 00:02:06]}
{[%emt 00:00:07]} Kxh2 {[%clk 00:03:12]} {[%emt 00:00:06]} 54. c8=Q {[%clk
00:02:29]} {[%emt 00:00:07]} h5 {[%clk 00:03:34]} {[%emt 00:00:08]} 55. Qh8
{[%clk 00:02:49]} {[%emt 00:00:09]} 1-0

[Event "NJSK 2021 Jeugd B"]
[Site "Almelo, Netherlands"]
[Date "2021.08.04"]
[Round "4.4"]
[White "Shadrin, Mitia"]
[Black "Yeh, Timo"]
[Result "0-1"]
[TimeControl "90min/40moves + 30min + 30sec/move"]
[WhiteElo "1698"]
[BlackElo "1819"]

1. e4 {[%clk 01:30:58]} {[%emt 00:00:01]} e5 {[%clk 01:30:58]} {[%emt
00:00:03]} 2. Nf3 {[%clk 01:31:23]} {[%emt 00:00:04]} Nc6 {[%clk 01:31:24]}
{[%emt 00:00:04]} 3. d4 {[%clk 01:31:50]} {[%emt 00:00:03]} exd4 {[%clk
01:31:50]} {[%emt 00:00:04]} 4. Nxd4 {[%clk 01:32:16]} {[%emt 00:00:04]} Bc5
{[%clk 01:32:16]} {[%emt 00:00:04]} 5. Be3 {[%clk 01:32:42]} {[%emt 00:00:04]}
Qf6 {[%clk 01:32:41]} {[%emt 00:00:05]} 6. Nb5 {[%clk 01:33:07]} {[%emt
00:00:05]} Bxe3 {[%clk 01:32:21]} {[%emt 00:00:50]} 7. fxe3 {[%clk 01:33:24]}
{[%emt 00:00:13]} Qh4+ {[%clk 01:32:13]} {[%emt 00:00:38]} 8. g3 {[%clk
01:33:47]} {[%emt 00:00:07]} Qxe4 {[%clk 01:32:40]} {[%emt 00:00:03]} 9. Nxc7+
{[%clk 01:34:01]} {[%emt 00:00:16]} Kd8 {[%clk 01:32:59]} {[%emt 00:00:10]} 10.
Nxa8 {[%clk 01:34:20]} {[%emt 00:00:12]} Qxh1 {[%clk 01:33:14]} {[%emt
00:00:15]} 11. Qd6 {[%clk 01:32:12]} {[%emt 00:02:36]} Nf6 {[%clk 01:33:07]}
{[%emt 00:00:39]} 12. Nd2 {[%clk 01:25:50]} {[%emt 00:06:51]} Qg1 {[%clk
01:21:29]} {[%emt 00:12:07]} 13. Qc7+ {[%clk 01:21:34]} {[%emt 00:04:45]} Ke7
{[%clk 01:21:52]} {[%emt 00:00:08]} 14. Qf4 {[%clk 01:21:47]} {[%emt 00:00:15]}
Qxh2 {[%clk 01:14:27]} {[%emt 00:07:58]} 15. O-O-O {[%clk 01:18:18]} {[%emt
00:03:59]} Qh6 {[%clk 01:13:43]} {[%emt 00:01:15]} 16. Qf2 {[%clk 00:58:20]}
{[%emt 00:20:26]} d5 {[%clk 01:10:16]} {[%emt 00:03:59]} 17. Nc7 {[%clk
00:50:49]} {[%emt 00:08:01]} Rd8 {[%clk 01:03:46]} {[%emt 00:06:59]} 18. Kb1
{[%clk 00:44:16]} {[%emt 00:07:03]} Kf8 {[%clk 01:00:35]} {[%emt 00:03:41]} 19.
Be2 {[%clk 00:40:42]} {[%emt 00:04:03]} a6 {[%clk 00:58:47]} {[%emt 00:02:19]}
20. Rf1 {[%clk 00:38:18]} {[%emt 00:02:53]} d4 {[%clk 00:54:12]} {[%emt
00:05:06]} 21. Nc4 {[%clk 00:35:30]} {[%emt 00:03:18]} b5 {[%clk 00:52:31]}
{[%emt 00:02:11]} 22. Qg2 {[%clk 00:33:58]} {[%emt 00:01:58]} Ne7 {[%clk
00:50:23]} {[%emt 00:02:43]} 23. e4 {[%clk 00:31:17]} {[%emt 00:03:09]} Bh3
{[%clk 00:49:58]} {[%emt 00:00:56]} 24. Nd2 {[%emt 00:02:27]} 0-1

[Event "NJSK 2021 Jeugd B"]
[Site "Almelo, Netherlands"]
[Date "2021.08.04"]
[Round "4.5"]
[White "Kien, Clovis"]
[Black "Zubair, Saad"]
[Result "1-0"]
[TimeControl "90min/40moves + 30min + 30sec/move"]
[WhiteElo "1683"]
[BlackElo "1645"]

1. d4 {[%clk 01:30:58]} {[%emt 00:00:03]} d5 {[%clk 01:30:54]} {[%emt
00:00:06]} 2. c4 {[%clk 01:31:25]} {[%emt 00:00:03]} e6 {[%clk 01:31:15]}
{[%emt 00:00:09]} 3. Nf3 {[%clk 01:31:46]} {[%emt 00:00:09]} Nc6 {[%clk
01:31:21]} {[%emt 00:00:24]} 4. Nc3 {[%clk 01:30:18]} {[%emt 00:01:58]} Nge7
{[%clk 01:30:13]} {[%emt 00:01:39]} 5. Bf4 {[%clk 01:18:45]} {[%emt 00:12:03]}
Ng6 {[%clk 01:29:52]} {[%emt 00:00:51]} 6. Bg3 {[%clk 01:19:06]} {[%emt
00:00:08]} a6 {[%clk 01:28:25]} {[%emt 00:01:58]} 7. e3 {[%clk 01:14:36]}
{[%emt 00:05:00]} Be7 {[%clk 01:28:04]} {[%emt 00:00:51]} 8. cxd5 {[%clk
01:10:39]} {[%emt 00:04:27]} exd5 {[%clk 01:27:43]} {[%emt 00:00:51]} 9. Qb3
{[%clk 01:10:27]} {[%emt 00:00:43]} Bb4 {[%clk 01:26:29]} {[%emt 00:01:45]} 10.
Bd3 {[%clk 01:09:16]} {[%emt 00:01:40]} Nge7 {[%clk 01:03:56]} {[%emt
00:23:02]} 11. O-O {[%clk 01:04:55]} {[%emt 00:04:51]} f6 {[%clk 00:55:46]}
{[%emt 00:08:40]} 12. e4 {[%clk 00:55:17]} {[%emt 00:10:08]} Be6 {[%clk
00:45:37]} {[%emt 00:10:32]} 13. e5 {[%clk 00:49:37]} {[%emt 00:06:16]} Qd7
{[%clk 00:32:13]} {[%emt 00:13:55]} 14. exf6 {[%clk 00:48:29]} {[%emt
00:01:38]} gxf6 {[%clk 00:31:25]} {[%emt 00:01:18]} 15. a3 {[%clk 00:48:25]}
{[%emt 00:00:34]} Bxc3 {[%clk 00:24:12]} {[%emt 00:07:42]} 16. bxc3 {[%clk
00:48:53]} {[%emt 00:00:04]} b6 {[%clk 00:21:14]} {[%emt 00:03:28]} 17. Rfe1
{[%clk 00:48:07]} {[%emt 00:01:15]} Kf7 {[%clk 00:18:42]} {[%emt 00:03:02]} 18.
Qc2 {[%clk 00:46:58]} {[%emt 00:01:39]} Bf5 {[%clk 00:17:28]} {[%emt 00:01:44]}
19. Bxf5 {[%clk 00:41:59]} {[%emt 00:05:28]} Nxf5 {[%clk 00:12:27]} {[%emt
00:05:32]} 20. Bxc7 {[%clk 00:42:00]} {[%emt 00:00:29]} Nfxd4 {[%clk 00:11:18]}
{[%emt 00:01:39]} 21. cxd4 {[%clk 00:41:34]} {[%emt 00:00:55]} Qxc7 {[%clk
00:11:17]} {[%emt 00:00:31]} 22. Qf5 {[%clk 00:40:17]} {[%emt 00:01:47]} Qd6
{[%clk 00:07:41]} {[%emt 00:04:07]} 23. Re6 {[%clk 00:39:55]} {[%emt 00:00:52]}
Qd8 {[%clk 00:03:27]} {[%emt 00:04:44]} 24. Rxc6 {[%clk 00:39:28]} {[%emt
00:00:56]} Kg7 {[%clk 00:03:07]} {[%emt 00:00:51]} 25. Rac1 {[%clk 00:39:48]}
{[%emt 00:00:09]} Ra7 {[%clk 00:02:33]} {[%emt 00:01:06]} 26. Qg4+ {[%clk
00:39:00]} {[%emt 00:01:18]} Kf7 {[%clk 00:01:02]} {[%emt 00:02:02]} 27. Rc8
{[%clk 00:39:26]} {[%emt 00:00:04]} Qd7 {[%clk 00:00:55]} {[%emt 00:00:37]} 28.
Qxd7+ {[%clk 00:39:44]} {[%emt 00:00:12]} Rxd7 {[%clk 00:01:23]} 29. Rxh8
{[%clk 00:40:08]} {[%emt 00:00:06]} 1-0